fUST/lending_fUST_20251229
["ID","MTS","AMOUNT","RATE_DAILY","PERIOD"]
[400000641,1767006631789,-8649.61678118,0.00013871,2]
[400000693,1767006637921,-188.11691081,0.0001383,2]
[400000694,1767006637931,-500.0,0.0001387,2]
[400000695,1767006637940,-500.0,0.0001387,2]
[400000696,1767006637949,-500.0,0.0001387,2]
[400000697,1767006637958,-500.0,0.0001387,2]
[400000698,1767006637968,-335.56740485,0.0001387,2]
[400000699,1767006637977,-500.0,0.0001387,2]
[400000700,1767006637986,-500.0,0.0001387,2]
[400000701,1767006637999,-500.0,0.0001387,2]
[400000702,1767006638009,-500.0,0.0001387,2]
[400000703,1767006638262,-500.0,0.0001387,2]
[400000704,1767006638271,-97.938433,0.0001387,2]
[400000705,1767006638288,-402.061567,0.0001387,2]
[400000706,1767006638297,-56.05844043,0.0001387,2]
[400000707,1767006638308,-250.54000002,0.0001387,2]
[400000708,1767006638320,-193.40155955,0.0001387,2]
[400000709,1767006638329,-496.88516146,0.0001387,2]
[400000710,1767006638339,-500.0,0.0001387,2]
[400000711,1767006638349,-500.0,0.0001387,2]
[400000712,1767006638358,-354.68409445,0.0001387,2]
[400000713,1767006638457,-145.31590555,0.0001387,2]
[400000714,1767006638467,-500.0,0.0001387,2]
[400000715,1767006638476,-500.0,0.0001387,2]
[400000716,1767006638485,-500.0,0.0001387,2]
[400000717,1767006638495,-500.0,0.0001387,2]
[400000718,1767006638504,-500.0,0.0001387,2]
[400000719,1767006638514,-500.0,0.0001387,2]
[400000720,1767006638523,-500.0,0.0001387,2]
[400000721,1767006638533,-500.0,0.0001387,2]
[400000722,1767006638543,-500.0,0.0001387,2]
[400000723,1767006638552,-500.0,0.0001387,2]
[400000724,1767006638562,-500.0,0.0001387,2]
[400000725,1767006638571,-500.0,0.0001387,2]
[400000726,1767006638581,-304.69925028,0.0001387,2]
[400000735,1767006640131,-3e-08,0.0001383,2]
[400000737,1767006640143,-214.99075518,0.0001383,2]
[400000738,1767006640151,-308.41426297,0.0001387,2]
[400000739,1767006640160,-500.0,0.0001387,2]
[400000740,1767006640169,-500.0,0.0001387,2]
[400000741,1767006640178,-270.08926764,0.0001387,2]
[400000742,1767006640187,-500.0,0.0001387,2]
[400000743,1767006640196,-3674.36574852,0.00013871,2]
[400000744,1767006640205,-376.1809797,0.000139,2]
[400000745,1767006640214,-449.94807892,0.00013968,2]
[400000746,1767006640224,-500.0,0.00013968,2]
[400000747,1767006640233,-196.51199247,0.00013968,2]
[400000748,1767006640242,-500.0,0.00013968,2]
[400000749,1767006640252,-500.0,0.00013968,2]
[400000750,1767006640261,-500.0,0.00013968,2]
[400000751,1767006640271,-500.0,0.00013968,2]
[400000752,1767006640283,-500.0,0.00013968,2]
[400000753,1767006640292,-500.0,0.00013968,2]
[400000754,1767006640302,-500.0,0.00013968,2]
[400000755,1767006640311,-500.0,0.00013968,2]
[400000756,1767006640321,-500.0,0.00013968,2]
[400000757,1767006640330,-500.0,0.00013968,2]
[400000758,1767006640339,-500.0,0.00013968,2]
[400000759,1767006640348,-500.0,0.00013968,2]
[400000760,1767006640358,-500.0,0.00013968,2]
[400000761,1767006640367,-7587.40163432,0.00013969,2]
[400000762,1767006640376,-500.0,0.00013971,2]
[400000763,1767006640385,-300.0,0.00013971,2]
[400000764,1767006640394,-300.0,0.00013971,2]
[400000765,1767006640404,-300.0,0.00013971,2]
[400000766,1767006640413,-300.0,0.00013971,2]
[400000767,1767006640422,-300.0,0.00013971,2]
[400000768,1767006640431,-300.0,0.00013971,2]
[400000769,1767006640440,-300.0,0.00013971,2]
[400000770,1767006640449,-300.0,0.00013971,2]
[400000771,1767006640457,-300.0,0.00013971,2]
[400000772,1767006640466,-300.0,0.00013971,2]
[400000773,1767006640475,-300.0,0.00013971,2]
[400000774,1767006640484,-300.0,0.00013971,2]
[400000775,1767006640494,-300.0,0.00013971,2]
[400000776,1767006640503,-300.0,0.00013971,2]
[400000777,1767006640512,-2000.0,0.00014,2]
[400000778,1767006640521,-300.0,0.00014221,2]
[400000779,1767006640530,-399.74668277,0.00014237,2]
[400000780,1767006640975,-100.26703148,0.00014237,2]
[400000794,1767006644075,-335.58713197,0.0001383,2]
[400000795,1767006644084,-224.41286803,0.00014237,2]
[400000796,1767006644095,-1493.17284954,0.00014237,2]
[400000797,1767006644104,-500.0,0.00014245,2]
[400000798,1767006644114,-352.82444072,0.00014391,2]
[400000799,1767006644123,-376.253583,0.00014495,2]
[400000800,1767006644132,-376.253583,0.00014495,2]
[400000801,1767006644142,-376.253583,0.00014495,2]
[400000802,1767006644152,-184.692,0.00014561,2]
[400000803,1767006644161,-207.557771,0.00014561,2]
[400000804,1767006644170,-207.557771,0.00014561,2]
[400000805,1767006644180,-207.557771,0.00014561,2]
[400000806,1767006644189,-207.557771,0.00014561,2]
[400000807,1767006644198,-151.0,0.00014561,2]
[400000808,1767006644207,-523.73366212,0.00014561,2]
[400000809,1767006644219,-2827.93633788,0.00014561,2]
[400000810,1767006644228,-3351.67,0.00014561,2]
[400000811,1767006644238,-3351.67,0.00014561,2]
[400000812,1767006644248,-3351.67,0.00014561,2]
[400000813,1767006644265,-3351.67,0.00014561,2]
[400000814,1767006644277,-3351.67,0.00014561,2]
[400000815,1767006644288,-1486.07908232,0.00014561,2]
[400000821,1767006645814,-1865.59091768,0.00014561,2]
[400000822,1767006645824,-2235.68863052,0.00014561,2]
[400000823,1767006645973,-579.54507521,0.00014561,2]
[400000824,1767006645985,-400.0,0.00014561,2]
[400000825,1767006645997,-136.43629427,0.00014561,2]
[400000826,1767006646007,-618.40179315,0.00014561,2]
[400000827,1767006646019,-605.6197518,0.00014561,2]
[400000829,1767006891299,160.0,0.00028767,120]
[400000830,1767006907991,160.0,0.00028767,120]
[400000846,1767006928873,160.0,0.00028767,120]
[400000848,1767006944493,160.0,0.00028767,120]
[400000849,1767006961789,180.0,0.00028767,120]
[400000850,1767006976457,182.0,0.00028767,120]
[400000855,1767007347635,150.0,6.99e-05,2]
[400000856,1767007348026,150.0,7.322e-05,2]
[400000857,1767007348510,150.0,7.655e-05,2]
[400000858,1767007348888,150.0,7.988e-05,2]
[400000859,1767007349274,150.0,8.321e-05,2]
[400000860,1767007349663,150.0,8.654e-05,2]
[400000863,1767007414030,150.0,6.999e-05,2]
[400000864,1767007414480,150.0,7.332e-05,2]
[400000865,1767007418456,-500.0,0.00013273,2]
[400000866,1767007418476,-500.0,0.00013273,2]
[400000867,1767007418495,-500.0,0.00013273,2]
[400000868,1767007418515,-500.0,0.00013273,2]
[400000870,1767007478402,150.0,7.019e-05,2]
[400000871,1767007478806,150.0,7.353e-05,2]
[400000872,1767007520067,-500.0,0.00013273,2]
[400000873,1767007533026,414.92423998,0.00013171,2]
[400000874,1767007542716,150.0,7.019e-05,2]
[400000932,1767007694413,2113.3604282,0.0001,2]
[400000944,1767007718596,5821.72533182,0.0001,2]
[400000945,1767007718627,1179.82526834,0.0001,2]
[400000946,1767007718926,2916.53892214,0.0001,2]
[400000988,1767007831963,-650.0,0.00013273,2]
[400000990,1767007831973,-172.26913738,0.0001335,2]
[400000992,1767007831982,-7208.890973,0.00013428,2]
[400000994,1767007831991,-300.0,0.00013673,2]
[400000996,1767007832000,-500.0,0.00013968,2]
[400000998,1767007832010,-500.0,0.00014256,2]
[400001000,1767007832018,-300.0,0.00014351,2]
[400001002,1767007832028,-500.0,0.00014352,2]
[400001004,1767007832037,-217.40028792,0.00014352,2]
[400001006,1767007832050,-500.0,0.00014352,2]
[400001008,1767007832059,-500.0,0.00014352,2]
[400001010,1767007832069,-500.0,0.00014352,2]
[400001012,1767007832079,-500.0,0.00014352,2]
[400001014,1767007832088,-252.23214085,0.00014352,2]
[400001016,1767007832098,-500.0,0.00014352,2]
[400001018,1767007832107,-403.42699911,0.00014352,2]
[400001019,1767007832117,-500.0,0.00014352,2]
[400001020,1767007832127,-572.49873853,0.00014352,2]
[400001022,1767007832136,-500.0,0.00014352,2]
[400001024,1767007832146,-500.0,0.00014352,2]
[400001026,1767007832156,-500.0,0.00014352,2]
[400001027,1767007832165,-8.59820799,0.00014352,2]
[400001036,1767007838020,-405.02157748,0.00014352,2]
[400001037,1767007838030,-3886.0249592,0.00014355,2]
[400001038,1767007838042,-461.985,0.00014355,2]
[400001039,1767007838053,-3200.2558995,0.00014355,2]
[400001040,1767007838062,-632.39328715,0.00014375,2]
[400001041,1767007838074,-355.66328915,0.00014375,2]
[400001042,1767007838084,-344.64853651,0.00014392,2]
[400001144,1767007845170,-4635.43008,0.00014392,2]
[400001147,1767007845183,-5852.66743195,0.00014392,2]
[400001149,1767007845193,-832.0,0.00014435,2]
[400001151,1767007845202,-832.0,0.00014448,2]
[400001153,1767007845211,-211.79156805,0.00014451,2]
[400001159,1767007845274,-137.07097578,0.00014451,2]
[400001161,1767007845284,-500.0,0.00014493,2]
[400001163,1767007845293,-832.0,0.00014508,2]
[400001165,1767007845302,-461.67526834,0.00014551,2]
[400001167,1767007845311,-2034.44205413,0.0001456,2]
[400001255,1767007846233,-148.99794587,0.0001456,2]
[400001256,1767007846242,-2183.44,0.0001456,2]
[400001257,1767007846252,-2183.44,0.0001456,2]
[400001258,1767007846261,-2183.44,0.0001456,2]
[400001259,1767007846269,-193.39975948,0.0001456,2]
[400001260,1767007846278,-152.78083478,0.00014561,2]
[400001261,1767007846287,-1199.999999,0.00014561,2]
[400001262,1767007846296,-500.0,0.00014561,2]
[400001263,1767007846305,-500.0,0.00014561,2]
[400001264,1767007846314,-500.0,0.00014561,2]
[400001265,1767007846323,-500.0,0.00014561,2]
[400001266,1767007846331,-500.0,0.00014561,2]
[400001267,1767007846341,-500.0,0.00014561,2]
[400001268,1767007846350,-500.0,0.00014561,2]
[400001269,1767007846361,-311.55234649,0.00014561,2]
[400001270,1767007846372,-166.046217,0.00014561,2]
[400001271,1767007846381,-166.046217,0.00014561,2]
[400001272,1767007846393,-166.046217,0.00014561,2]
[400001273,1767007846407,-166.046217,0.00014561,2]
[400001274,1767007846416,-151.0,0.00014561,2]
[400001275,1767007846425,-832.0,0.00014687,2]
[400001276,1767007846434,-3809.0,0.00014791,2]
[400001277,1767007846444,-3809.0,0.00014828,2]
[400001278,1767007846453,-832.0,0.00014828,2]
[400001279,1767007846462,-832.0,0.00014843,2]
[400001280,1767007846470,-600.0,0.00014851,2]
[400001282,1767007846479,-184.69329508,0.00014926,2]
[400001283,1767007846489,-213.97079614,0.00014991,2]
[400001285,1767007846499,-448.64398532,0.00014991,2]
[400001287,1767007846511,-217.05517089,0.00014991,2]
[400001289,1767007846520,-248.06305245,0.00014991,2]
[400001291,1767007846530,-384.76228562,0.00014991,2]
[400001293,1767007846539,-832.0,0.00015023,2]
[400001295,1767007846549,-150.0,0.00015034,2]
[400001297,1767007846558,-469.6,0.0001505,2]
[400001299,1767007846567,-832.0,0.00015065,2]
[400001301,1767007846576,-173.588994,0.00015068,2]
[400001303,1767007846585,-3809.0,0.0001507,2]
[400001306,1767007846595,-166.046217,0.0001507,2]
[400001308,1767007846604,-166.046217,0.0001507,2]
[400001309,1767007846614,-166.046217,0.0001507,2]
[400001311,1767007846623,-166.046217,0.0001507,2]
[400001313,1767007846633,-151.0,0.0001507,2]
[400001315,1767007846642,-478.75725327,0.00015099,2]
[400001317,1767007846651,-186.51346308,0.00015171,2]
[400001319,1767007846660,-387.59851945,0.00015178,2]
[400001322,1767007846670,-832.0,0.000152,2]
[400001324,1767007846680,-832.0,0.00015224,2]
[400001325,1767007846689,-195.1765592,0.00015224,2]
[400001328,1767007846699,-168.0,0.00015245,2]
[400001330,1767007846709,-832.0,0.00015287,2]
[400001332,1767007846718,-281.26394573,0.00015299,2]
[400001334,1767007846730,-550.73605427,0.00015299,2]
[400001336,1767007846740,-266.0,0.000153,2]
[400001338,1767007846749,-280.0,0.00015324,2]
[400001340,1767007846758,-705.0360692,0.00015335,2]
[400001342,1767007846771,-126.9639308,0.00015335,2]
[400001344,1767007846780,-203.2775821,0.0001535,2]
[400001346,1767007846793,-74.84889518,0.0001537,2]
[400001470,1767008053250,164.0,0.000287,120]
[400001474,1767008284593,-500.0,0.00013273,2]
[400001475,1767008284614,-500.0,0.00013273,2]
[400001476,1767008284635,-500.0,0.00013273,2]
[400001477,1767008284655,-500.0,0.00013273,2]
[400001478,1767008308767,150.0,7.545e-05,2]
[400001479,1767008309187,150.0,7.905e-05,2]
[400001480,1767008309584,150.0,8.264e-05,2]
[400001481,1767008310007,150.0,8.623e-05,2]
[400001482,1767008310400,150.0,8.983e-05,2]
[400001486,1767008375299,150.0,7.174e-05,2]
[400001491,1767008466682,-500.0,0.00013273,2]
[400001492,1767008466704,-500.0,0.00013273,2]
[400001493,1767008488072,5000.0,0.00013171,2]
[400001495,1767008504748,3.64580952,0.00013171,2]
[400001496,1767008504770,689.58316094,0.00013171,2]
[400001497,1767008512595,3871.15906823,0.00013171,2]
[400001498,1767008535819,2917.98635367,0.00013171,2]
[400001499,1767008567252,150.0,6.454e-05,2]
[400001500,1767008567654,150.0,6.761e-05,2]
[400001542,1767008826463,-608.63334278,0.00013173,2]
[400001545,1767008828370,-229.56181356,0.00013173,2]
[400001561,1767008995649,-270.10082779,0.00014971,7]
[400001593,1767009032145,-171.37879101,0.00013173,2]
[400001595,1767009032154,-114.64645724,0.00013273,2]
[400001597,1767009032166,-303.25336657,0.00013273,2]
[400001903,1767009038369,-33.82477933,0.00013273,2]
[400001904,1767009038378,-500.0,0.00013273,2]
[400001905,1767009038388,-176.75642428,0.00013273,2]
[400001906,1767009038398,-458.696247,0.00013699,2]
[400001907,1767009038407,-500.0,0.00014256,2]
[400001908,1767009038417,-1641.9248512,0.00014354,2]
[400001909,1767009038431,-177.6151488,0.00014354,2]
[400001910,1767009038441,-1262.56647247,0.00014559,2]
[400001916,1767009040356,-556.97352753,0.00014559,2]
[400001917,1767009040366,-300.0,0.00014559,2]
[400001918,1767009040375,-447.70817924,0.00014559,2]
[400001919,1767009040384,-500.0,0.00014559,2]
[400001920,1767009040393,-500.0,0.00014559,2]
[400001921,1767009040402,-617.61468678,0.00014559,2]
[400001922,1767009040411,-395.62676418,0.00014559,2]
[400001923,1767009040420,-500.0,0.00014559,2]
[400001924,1767009040429,-500.0,0.00014559,2]
[400001925,1767009040438,-500.0,0.00014559,2]
[400001926,1767009040447,-500.0,0.00014559,2]
[400001927,1767009040455,-219.79734383,0.0001456,2]
[400001928,1767009040464,-500.0,0.0001456,2]
[400001929,1767009040473,-606.2034702,0.0001456,2]
[400001930,1767009040482,-500.0,0.0001456,2]
[400001931,1767009040491,-500.0,0.0001456,2]
[400001932,1767009040500,-500.0,0.0001456,2]
[400001933,1767009040509,-500.0,0.0001456,2]
[400001934,1767009040518,-500.0,0.0001456,2]
[400001935,1767009040527,-500.0,0.0001456,2]
[400001936,1767009040536,-500.0,0.0001456,2]
[400001937,1767009040544,-500.0,0.0001456,2]
[400001938,1767009040554,-500.0,0.0001456,2]
[400001939,1767009040563,-500.0,0.0001456,2]
[400001940,1767009040571,-500.0,0.0001456,2]
[400001941,1767009040582,-500.0,0.0001456,2]
[400001942,1767009040591,-398.72243416,0.0001456,2]
[400001943,1767009040599,-185.51378116,0.00014561,2]
[400001944,1767009040608,-184.79277561,0.00014561,2]
[400001945,1767009040617,-171.76695376,0.00014561,2]
[400001946,1767009040626,-183.2494362,0.00014561,2]
[400001947,1767009040634,-2880.56995854,0.00014561,2]
[400001948,1767009040646,-35392.59872217,0.00014561,2]
[400001949,1767009040655,-599.485757,0.000146,2]
[400001950,1767009040664,-599.485757,0.000146,2]
[400001951,1767009040676,-2230.315306,0.0001469,2]
[400001952,1767009040686,-1537.2667945,0.00014857,2]
[400001953,1767009040695,-195.17655919,0.00014897,2]
[400001954,1767009040704,-461.67526834,0.00014923,2]
[400001955,1767009040713,-500.0,0.00014923,2]
[400001956,1767009040722,-341.9888739,0.00014923,2]
[400001957,1767009040731,-186.8740369,0.00014932,2]
[400001958,1767009040740,-193.282872,0.00014932,2]
[400001959,1767009040749,-599.485757,0.00014932,2]
[400001960,1767009040759,-193.282872,0.00014932,2]
[400001961,1767009040768,-184.0935814,0.00014932,2]
[400001962,1767009040777,-599.485757,0.00014932,2]
[400001963,1767009040786,-193.282872,0.00014932,2]
[400001964,1767009040795,-1333.4106879,0.00014932,2]
[400001965,1767009040804,-193.282872,0.00014932,2]
[400001966,1767009040813,-599.485757,0.00014932,2]
[400001967,1767009040822,-193.282872,0.00014932,2]
[400001968,1767009040831,-599.485757,0.00014932,2]
[400001969,1767009040839,-193.282872,0.00014932,2]
[400001970,1767009040849,-599.485757,0.00014932,2]
[400001971,1767009040858,-193.282872,0.00014932,2]
[400001972,1767009040867,-599.485757,0.00014932,2]
[400001973,1767009040876,-193.282872,0.00014932,2]
[400001974,1767009040885,-599.485757,0.00014932,2]
[400001975,1767009040895,-193.282872,0.00014932,2]
[400001976,1767009040903,-599.485757,0.00014932,2]
[400001977,1767009040913,-597.8640713,0.00014932,2]
[400001978,1767009040923,-172.661553,0.00014932,2]
[400001979,1767009040931,-599.485757,0.00014978,2]
[400001980,1767009040941,-1819.54,0.0001499,2]
[400001981,1767009040950,-333.59088129,0.00014997,2]
[400001982,1767009040959,-184.0935814,0.00015,2]
[400001983,1767009040968,-599.485757,0.00015,2]
[400001984,1767009040977,-164.0,0.000151,2]
[400001985,1767009040986,-188.0645005,0.00015151,2]
[400001986,1767009040996,-2312.83697232,0.00015238,2]
[400001987,1767009041004,-644.39,0.0001526,3]
[400001988,1767009041014,-855.61849837,0.0001527,2]
[400001989,1767009041038,-876464.34484728,0.0001527,2]
[400002008,1767009044583,-2218.93996727,0.0001527,2]
[400002009,1767009044636,-636.36787618,0.0001527,2]
[400002024,1767009080391,209.54756206,0.00013171,2]
[400002057,1767009095818,155.0,0.00028767,120]
[400002085,1767009271046,150.0,6.236e-05,2]
[400002209,1767010232235,-1140.38279329,0.00013272,2]
[400002216,1767010232289,-59.61720671,0.00013272,2]
[400002218,1767010232298,-300.0,0.00013272,2]
[400002220,1767010232307,-498.82169054,0.00013272,2]
[400002407,1767010238484,-109.17830946,0.00013272,2]
[400002409,1767010238494,-173.22129579,0.00013272,2]
[400002411,1767010238504,-162.81861482,0.00013273,2]
[400002413,1767010238514,-326.26038646,0.00013273,2]
[400002415,1767010238524,-500.0,0.00013273,2]
[400002417,1767010238534,-500.0,0.00013273,2]
[400002419,1767010238544,-500.0,0.00013273,2]
[400002421,1767010238554,-500.0,0.00013273,2]
[400002423,1767010238566,-1000.0,0.00014048,2]
[400002426,1767010238575,-500.0,0.00014256,2]
[400002427,1767010238584,-305.854324,0.0001427,2]
[400002430,1767010238594,-420.0,0.00014551,2]
[400002431,1767010238603,-308.87133625,0.00014932,2]
[400002434,1767010238613,-500.0,0.00015068,2]
[400002436,1767010238623,-497.46809814,0.00015068,2]
[400002437,1767010238633,-452.41741,0.00015068,2]
[400002438,1767010238642,-500.0,0.00015068,2]
[400002439,1767010238652,-3404.50117924,0.00015069,2]
[400002441,1767010238663,-6074.15161318,0.00015069,2]
[400002443,1767010238673,-1592.09,0.00015131,2]
[400002445,1767010238682,-461.67526834,0.00015161,2]
[400002446,1767010238692,-446.30017672,0.00015164,2]
[400002449,1767010238704,-1134.12514722,0.00015164,2]
[400002451,1767010238714,-639.99013037,0.00015168,2]
[400002453,1767010238723,-500.0,0.00015168,2]
[400002455,1767010238733,-259.4580503,0.00015168,2]
[400002456,1767010238742,-238.085288,0.00015168,2]
[400002459,1767010238752,-500.0,0.00015168,2]
[400002460,1767010238762,-500.0,0.00015168,2]
[400002462,1767010238771,-500.0,0.00015168,2]
[400002464,1767010238781,-500.0,0.00015168,2]
[400002466,1767010238791,-500.0,0.00015168,2]
[400002468,1767010238801,-500.0,0.00015168,2]
[400002470,1767010238811,-500.0,0.00015168,2]
[400002472,1767010238821,-500.0,0.00015168,2]
[400002474,1767010238830,-1592.09,0.00015169,2]
[400002476,1767010238841,-1592.09,0.00015169,2]
[400002478,1767010238850,-1592.09,0.00015169,2]
[400002480,1767010238859,-1592.09,0.00015169,2]
[400002482,1767010238869,-1592.09,0.00015169,2]
[400002484,1767010238879,-1592.09,0.00015169,2]
[400002486,1767010238888,-1158.06675075,0.00015169,2]
[400002530,1767010240750,-434.02324925,0.00015169,2]
[400002532,1767010240760,-83.41289393,0.00015169,2]
[400002946,1767010244696,-1508.67710607,0.00015169,2]
[400002948,1767010244705,-1592.09,0.00015169,2]
[400002950,1767010244715,-1592.09,0.00015169,2]
[400002952,1767010244724,-1592.09,0.00015169,2]
[400002954,1767010244733,-1592.09,0.00015169,2]
[400002956,1767010244747,-1592.09,0.00015169,2]
[400002958,1767010244756,-1592.09,0.00015169,2]
[400002960,1767010244766,-1592.09,0.00015169,2]
[400002962,1767010244775,-1592.09,0.00015169,2]
[400002964,1767010244784,-1592.09,0.00015169,2]
[400002966,1767010244794,-1592.09,0.00015169,2]
[400002968,1767010244803,-1592.09,0.00015169,2]
[400002970,1767010244813,-1592.09,0.00015169,2]
[400002972,1767010244823,-1592.09,0.00015169,2]
[400002974,1767010244832,-1592.09,0.00015169,2]
[400002976,1767010244842,-1592.32019793,0.00015169,2]
[400002978,1767010244853,-29048.67289946,0.0001517,2]
[400002980,1767010244865,-1313.0,0.0001517,2]
[400003040,1767010245429,-11940.89469203,0.0001517,2]
[400003042,1767010245440,-596.16442264,0.0001517,2]
[400003152,1767010246356,-2281.28905335,0.0001517,2]
[400003153,1767010246367,-22986.12511818,0.0001517,2]
[400003862,1767010538901,1123.24495102,0.00013,2]
[400003863,1767010551832,-150.0,0.00014256,2]
[400003865,1767010698751,526.88199564,0.00013171,2]
[400003866,1767010785835,211.60690844,0.00013,2]
[400003867,1767010785857,10000.01,0.00013,2]
[400003868,1767010785878,10000.01,0.00013,2]
[400003869,1767010785900,709.07706281,0.00013,2]
[400003870,1767010791000,5000.0,0.00013171,2]
[400003871,1767010803336,150.0,7.061e-05,2]
[400003872,1767010803745,150.0,7.397e-05,2]
[400003873,1767010804654,150.0,7.733e-05,2]
[400003874,1767010805578,186.15,8.07e-05,2]
[400003875,1767010806004,232.68,8.406e-05,2]
[400003876,1767010806415,279.22,8.742e-05,2]
[400003877,1767010806854,325.76,9.078e-05,2]
[400003878,1767010807763,1615.64655823,0.00013171,2]
[400003879,1767010807807,372.29,9.415e-05,2]
[400003880,1767010808262,418.83,9.751e-05,2]
[400003881,1767010808693,410.35637896,0.00010087,2]
[400003882,1767010808721,55.00362104,0.00010087,2]
[400003883,1767010815755,5000.0,0.00013171,2]
[400003884,1767010839242,4945.00637896,0.00013171,2]
[400003885,1767010839267,54.99362104,0.00013171,2]
[400003886,1767010863066,5000.0,0.00013171,2]
[400003891,1767010876695,150.0,7.115e-05,2]
[400003892,1767010877085,150.0,7.454e-05,2]
[400003893,1767010877570,150.0,7.793e-05,2]
[400003894,1767010877904,161.38,8.132e-05,2]
[400003895,1767010878295,201.72,8.471e-05,2]
[400003896,1767010878710,242.07,8.809e-05,2]
[400003897,1767010879112,282.41,9.148e-05,2]
[400003898,1767010879554,322.76,9.487e-05,2]
[400003899,1767010879945,363.1,9.826e-05,2]
[400003900,1767010880378,403.45,0.00010165,2]
[400003901,1767010886268,5000.0,0.00013171,2]
[400003907,1767010910059,3910.7,0.00013171,2]
[400003908,1767010910084,1089.3,0.00013171,2]
[400003909,1767010933211,150.0,0.00013273,2]
[400003910,1767010933661,-150.0,0.00013273,2]
[400003911,1767010946077,150.0,7.079e-05,2]
[400003912,1767010946467,150.0,7.416e-05,2]
[400003913,1767010947641,150.0,7.753e-05,2]
[400003914,1767010948045,150.0,8.09e-05,2]
[400003915,1767010948445,165.29,8.427e-05,2]
[400003916,1767010948878,198.34,8.764e-05,2]
[400003917,1767010949555,231.4,9.102e-05,2]
[400003918,1767010949962,264.46,9.439e-05,2]
[400003919,1767010950362,297.52,9.776e-05,2]
[400003920,1767010950769,330.57,0.00010113,2]
[400003921,1767011017169,150.0,7.072e-05,2]
[400003922,1767011017626,150.0,7.409e-05,2]
[400003923,1767011018029,150.0,7.746e-05,2]
[400003924,1767011018621,150.0,8.083e-05,2]
[400003925,1767011018857,150.0,8.42e-05,2]
[400003926,1767011115243,5000.0,0.00013167,2]
[400003928,1767011138831,5000.0,0.00013167,2]
[400003931,1767011163261,0.01,0.00013167,2]
[400003932,1767011163286,4888.74845983,0.00013167,2]
[400003935,1767011186476,1411.99765353,0.00013167,2]
[400003936,1767011210635,150.0,7.052e-05,2]
[400003937,1767011211054,150.0,7.387e-05,2]
[400003938,1767011211496,150.0,7.723e-05,2]
[400004059,1767011438590,-3730.0,0.00013272,2]
[400004060,1767011438599,-608.0,0.00013272,2]
[400004061,1767011438608,-173.95358839,0.00013273,2]
[400004062,1767011438617,-277.18138518,0.00013273,2]
[400004063,1767011438626,-500.0,0.00013273,2]
[400004064,1767011438636,-500.0,0.00013273,2]
[400004065,1767011438645,-449.250264,0.00013699,2]
[400004066,1767011438654,-500.0,0.00013699,2]
[400004067,1767011438664,-300.0,0.00013895,2]
[400004068,1767011438673,-300.0,0.00013895,2]
[400004069,1767011438683,-157.97166386,0.00013895,2]
[400004070,1767011438692,-166.38534424,0.00013895,2]
[400004071,1767011438703,-500.0,0.00013895,2]
[400004072,1767011438713,-156.78299713,0.00013895,2]
[400004073,1767011438723,-2070.8122231,0.00013896,2]
[400004074,1767011438733,-4443.1818192,0.00013896,2]
[400004075,1767011438742,-1200.0,0.00014244,2]
[400004076,1767011438752,-1000.0,0.00014247,2]
[400004077,1767011438763,-500.0,0.00014256,2]
[400004078,1767011438773,-593.91570988,0.000149,2]
[400004079,1767011438783,-5906.73812909,0.00014967,2]